bitfinex/quotes_BTCUSD_20240731
["timestamp","ask_amount","ask_price","bid_price","bid_amount"]
[1722449892616,0.450916,66531.0,66530.0,0.002]
[1722449892823,1.052138,66531.0,66530.0,0.002]
[1722449893025,0.300611,66531.0,66524.0,0.0799]
[1722449893239,0.150287,66540.0,66530.0,0.001]
[1722449893467,0.1,66539.0,66531.0,0.363111]
[1722449893678,0.00083,66546.0,66532.0,0.0798]
[1722449893883,0.150292,66537.0,66532.0,0.230103]
[1722449894288,0.300574,66540.0,66533.0,0.150301]
[1722449894457,0.150293,66537.0,66532.0,0.230103]
[1722449894917,0.1503,66534.0,66532.0,0.0798]
[1722449895141,0.1503,66534.0,66526.0,0.300632]
[1722449895142,0.0825,66537.0,66519.0,0.1401]
[1722449895351,0.15032,66525.0,66519.0,0.1401]
[1722449895558,0.450897,66534.0,66533.0,0.001]
[1722449895762,0.150326,66522.0,66521.0,0.00106744]
[1722449896002,0.150338,66517.0,66512.0,0.150348]
[1722449896214,0.150338,66517.0,66510.0,0.441303]
[1722449896215,0.300635,66526.0,66513.0,0.12651342]
[1722449896433,0.150338,66517.0,66514.0,0.12495922]
[1722449896643,0.150331,66520.0,66515.0,0.12495922]
[1722449896849,0.14955172,66533.0,66511.0,0.300701]
[1722449897048,0.150308,66530.0,66525.0,0.150318]
[1722449897255,0.300615,66531.0,66521.0,0.300655]
[1722449897476,0.300615,66531.0,66523.0,0.150321]
[1722449897477,0.006,66526.0,66523.0,0.150321]
[1722449897678,0.006,66526.0,66522.0,0.150325]
[1722449897886,0.006,66526.0,66516.0,0.29305172]
[1722449897887,0.00083,66546.0,66516.0,0.30305172]
[1722449898090,0.150291,66538.0,66532.0,0.150303]
[1722449898303,0.014,66533.0,66532.0,0.45091]
[1722449898520,0.014,66533.0,66532.0,0.33793322]
[1722449898728,0.014,66533.0,66532.0,0.63854022]
[1722449898946,0.014,66533.0,66532.0,0.93914722]
[1722449899633,0.013,66538.0,66532.0,0.48823722]
[1722449899832,0.02357885,66533.0,66532.0,0.51361]
[1722449900040,0.02357885,66533.0,66532.0,0.63853654]
[1722449900244,0.02357885,66533.0,66532.0,0.12492654]
[1722449900574,0.02457885,66533.0,66532.0,0.12992654]
[1722449901008,0.02457885,66533.0,66532.0,0.13392654]
[1722449901169,0.02357885,66533.0,66532.0,0.12492654]
[1722449901378,0.02357885,66533.0,66532.0,0.12992654]
[1722449901626,0.17387985,66533.0,66532.0,0.008]
[1722449901827,0.02357885,66533.0,66532.0,0.12993088]
[1722449902193,0.150297,66535.0,66532.0,0.13393088]
[1722449902380,0.300582,66538.0,66533.0,0.12493088]
[1722449902594,0.150297,66535.0,66534.0,0.12493088]
[1722449902808,0.45089,66535.0,66534.0,0.12493088]
[1722449903178,0.751483,66535.0,66534.0,0.12493088]
[1722449903805,0.751483,66535.0,66534.0,0.12793088]
[1722449904029,1.1632929,66535.0,66534.0,0.12793088]
[1722449904286,1.31284462,66535.0,66534.0,0.003]
[1722449904494,1.71343762,66535.0,66534.0,0.003]
[1722449905050,1.85383762,66535.0,66534.0,0.003]
[1722449905437,1.85683762,66535.0,66534.0,0.003]
[1722449905647,1.85683762,66535.0,66516.0,0.0015542]
[1722449905648,0.150337,66517.0,66516.0,0.0015542]
[1722449905856,0.150337,66517.0,66516.0,0.12496235]
[1722449906253,0.37379714,66534.0,66515.0,0.0756]
[1722449906460,0.451018,66516.0,66515.0,0.0756]
[1722449906672,0.451018,66516.0,66515.0,0.1249641]
[1722449907125,0.751697,66516.0,66515.0,0.1249641]
[1722449907351,0.751697,66516.0,66505.0,0.0527304]
[1722449907352,0.150366,66505.0,66501.0,0.0825]
[1722449907556,0.300677,66517.0,66502.0,0.12498569]
[1722449907557,0.451107,66503.0,66502.0,0.12498569]
[1722449907769,0.150369,66503.0,66502.0,0.12498569]
[1722449907986,0.300719,66508.0,66502.0,0.15037]
[1722449908189,0.300719,66508.0,66503.0,0.12499608]
[1722449908190,0.300721,66507.0,66503.0,0.12499608]
[1722449908393,0.150365,66505.0,66504.0,0.12499608]
[1722449908597,0.452094,66505.0,66504.0,0.12499608]
[1722449908803,0.451094,66505.0,66504.0,0.12499608]
[1722449909009,0.150365,66505.0,66504.0,0.12499608]
[1722449909596,0.012,66508.0,66504.0,0.12499608]
[1722449909799,0.012,66508.0,66505.0,0.12499608]
[1722449910028,0.012,66508.0,66502.0,0.30474604]
[1722449910029,0.012,66508.0,66507.0,0.0638]
[1722449910217,0.012,66508.0,66507.0,0.18879608]
[1722449910397,0.150353,66510.0,66507.0,0.18879608]
[1722449910596,0.451066,66509.0,66508.0,0.12499608]
[1722449910996,0.150355,66509.0,66508.0,0.12499608]
[1722449911210,0.150355,66509.0,66504.0,0.151366]
[1722449911419,0.001,66508.0,66505.0,0.12498439]
[1722449911976,0.15036,66507.0,66506.0,0.12498348]
[1722449912094,0.45108,66507.0,66506.0,0.12498348]
[1722449912506,0.15036,66507.0,66506.0,0.12498348]
[1722449912709,0.45108,66507.0,66506.0,0.12498348]
[1722449912954,0.7518,66507.0,66506.0,0.12498348]
[1722449913176,0.451093,66505.0,66504.0,0.000913]
[1722449913385,0.451093,66505.0,66504.0,0.12589893]
[1722449913612,0.751822,66505.0,66504.0,0.000913]
[1722449914667,0.751822,66505.0,66504.0,0.003913]
[1722449914914,0.751822,66505.0,66504.0,0.004913]
[1722449915092,1.052551,66505.0,66504.0,0.004913]
[1722449915296,0.757822,66505.0,66504.0,0.005913]
[1722449916222,0.757822,66505.0,66504.0,0.001913]
[1722449916633,0.758822,66505.0,66504.0,0.001913]
[1722449916836,0.767822,66505.0,66504.0,0.002913]
[1722449917037,0.760822,66505.0,66504.0,0.001913]
[1722449917235,0.760822,66505.0,66504.0,0.000913]
[1722449917236,0.751822,66505.0,66504.0,0.000913]
[1722449917527,0.759822,66505.0,66504.0,0.001913]
[1722449917947,0.609458,66505.0,66504.0,0.000913]
[1722449918157,1.066551,66505.0,66504.0,0.001913]
[1722449918358,0.765822,66505.0,66504.0,0.001913]
[1722449918987,0.751822,66505.0,66504.0,0.000913]
[1722449919617,0.458093,66505.0,66504.0,0.001913]
[1722449919821,0.758822,66505.0,66504.0,0.001913]
[1722449920034,0.751822,66505.0,66504.0,0.000913]
[1722449920247,0.754822,66505.0,66504.0,0.000913]
[1722449920479,0.762822,66505.0,66504.0,0.001913]
[1722449920707,0.762822,66505.0,66504.0,0.000913]
[1722449920945,0.767822,66505.0,66504.0,0.001913]
[1722449921708,0.77841264,66505.0,66504.0,0.000913]
[1722449921948,0.77841264,66505.0,66504.0,0.001913]
[1722449921949,0.754822,66505.0,66504.0,0.001913]
[1722449922182,0.759822,66505.0,66504.0,0.001913]
[1722449922427,0.756822,66505.0,66504.0,0.001913]
[1722449922684,1.41922772,66505.0,66504.0,0.001913]
[1722449922911,1.41922772,66505.0,66504.0,0.000913]
[1722449922912,1.50182772,66505.0,66504.0,0.000913]
[1722449923159,1.49682772,66505.0,66504.0,0.000913]
[1722449923405,1.85905672,66505.0,66504.0,0.000913]
[1722449923629,1.86705672,66505.0,66504.0,0.001913]
[1722449924263,1.85905672,66505.0,66504.0,0.000913]
[1722449924474,1.55832772,66505.0,66504.0,0.000913]
[1722449924680,1.56732772,66505.0,66504.0,0.001913]
[1722449924879,1.86805672,66505.0,66504.0,0.001913]
[1722449925106,1.90051503,66505.0,66504.0,0.001913]
[1722449925750,1.90751503,66505.0,66504.0,0.001913]
[1722449926326,1.58319246,66505.0,66504.0,0.001913]
[1722449926803,1.77179646,66505.0,66504.0,0.001913]
[1722449927014,1.312651,66505.0,66504.0,0.001913]
[1722449927224,0.932322,66505.0,66504.0,0.001913]
[1722449927432,0.867822,66505.0,66504.0,0.001913]
[1722449928059,0.467093,66505.0,66504.0,0.001913]
[1722449928260,0.016,66505.0,66504.0,0.001913]
[1722449928491,0.016,66505.0,66504.0,0.453012]
[1722449928692,0.016,66505.0,66504.0,0.895245]
[1722449928901,0.016,66505.0,66504.0,1.04479672]
[1722449929555,0.03258744,66505.0,66504.0,1.04479672]
[1722449929763,0.01,66505.0,66504.0,1.04979672]
[1722449930200,0.001,66505.0,66504.0,1.04879672]
[1722449930603,0.01,66505.0,66504.0,1.04979672]
[1722449930717,0.01,66505.0,66504.0,1.04879672]
[1722449931127,0.011,66505.0,66504.0,1.05479672]
[1722449931343,0.011,66505.0,66504.0,1.35552972]
[1722449931581,0.011,66505.0,66504.0,1.74970227]
[1722449931987,0.011,66505.0,66504.0,1.48050227]
[1722449933045,0.03458597,66505.0,66504.0,1.48050227]
[1722449933274,0.011,66505.0,66504.0,1.48050227]
[1722449934318,0.011,66505.0,66504.0,1.48049777]
[1722449934523,0.011,66505.0,66504.0,1.75969777]
[1722449934728,0.011,66505.0,66504.0,1.74969777]
[1722449935155,0.011,66505.0,66504.0,1.48049777]
[1722449935567,0.011,66505.0,66504.0,0.57829877]
[1722449936698,0.03458738,66505.0,66504.0,0.87903177]
[1722449936899,0.011,66505.0,66504.0,0.87903177]
[1722449937098,0.011,66505.0,66504.0,1.05479672]
[1722449937297,0.011,66505.0,66504.0,1.17976967]
[1722449937716,0.011,66505.0,66504.0,1.48050267]
[1722449940373,0.011,66505.0,66504.0,0.36785195]
[1722449940630,0.03458683,66505.0,66504.0,0.13688596]
[1722449940864,0.18495083,66505.0,66504.0,0.13688596]
[1722449941099,0.03458683,66505.0,66504.0,0.58798621]
[1722449941332,0.011,66505.0,66504.0,0.88871921]
[1722449941567,0.011,66505.0,66504.0,0.28725321]
[1722449942464,0.011,66505.0,66504.0,0.58798621]
[1722449942699,0.011,66505.0,66504.0,0.58798642]
[1722449942924,0.011,66505.0,66504.0,0.58798631]
[1722449943636,0.011,66505.0,66504.0,0.28725331]
[1722449943843,0.011,66505.0,66504.0,0.13688731]
[1722449943995,0.011,66505.0,66504.0,0.011913]
[1722449944219,0.311729,66505.0,66504.0,0.011913]
[1722449944518,0.78641052,66505.0,66504.0,0.011913]
[1722449945106,0.762822,66505.0,66504.0,0.011913]
[1722449945310,1.064381,66505.0,66504.0,0.011913]
[1722449945492,1.129481,66505.0,66504.0,0.011913]
[1722449945910,0.828752,66505.0,66504.0,0.011913]
[1722449946109,0.528023,66505.0,66504.0,0.011913]
[1722449946357,0.517023,66505.0,66504.0,0.000913]
[1722449946612,0.517023,66505.0,66504.0,0.001913]
[1722449946613,0.823752,66505.0,66504.0,0.001913]
[1722449946830,0.831752,66505.0,66504.0,0.002913]
[1722449947005,0.831752,66505.0,66504.0,0.001913]
[1722449947165,0.531023,66505.0,66504.0,0.002913]
[1722449947368,0.539023,66505.0,66504.0,0.002913]
[1722449947732,0.839752,66505.0,66504.0,0.002913]
[1722449948028,0.833752,66505.0,66504.0,0.001913]
[1722449948236,0.85734283,66505.0,66504.0,0.001913]
[1722449948425,0.533023,66505.0,66504.0,0.001913]
[1722449948685,0.523023,66505.0,66504.0,0.001913]
[1722449948931,0.528023,66505.0,66504.0,0.002913]
[1722449949163,0.823752,66505.0,66504.0,0.001913]
[1722449949647,0.820752,66505.0,66504.0,0.000913]
[1722449949897,1.121481,66505.0,66504.0,0.000913]
[1722449950179,0.821752,66505.0,66504.0,0.000913]
[1722449950424,0.898052,66505.0,66504.0,0.000913]
[1722449951490,1.197781,66505.0,66504.0,0.000913]
[1722449951872,1.22737298,66505.0,66504.0,0.001913]
[1722449952077,1.6539913,66505.0,66504.0,0.001913]
[1722449952360,1.4552623,66505.0,66504.0,0.001913]
[1722449952604,1.4542623,66505.0,66504.0,0.001913]
[1722449952823,1.313781,66505.0,66504.0,0.002913]
[1722449953058,1.306781,66505.0,66504.0,0.001913]
[1722449953543,1.306781,66505.0,66504.0,0.002913]
[1722449953544,1.313781,66505.0,66504.0,0.002913]
[1722449953796,0.933752,66505.0,66504.0,0.002913]
[1722449954019,0.567923,66505.0,66504.0,0.002913]
[1722449954263,0.167194,66505.0,66504.0,0.002913]
[1722449954461,0.01683,66505.0,66504.0,0.002913]
[1722449954869,0.167194,66505.0,66504.0,0.002913]
[1722449955391,0.4915132,66505.0,66504.0,0.002913]
[1722449955825,0.0404202,66505.0,66504.0,0.002913]
[1722449956027,0.4915132,66505.0,66504.0,0.002913]
[1722449956233,0.1907842,66505.0,66504.0,0.002913]
[1722449956904,0.0404202,66505.0,66504.0,0.002913]
[1722449957095,0.4915132,66505.0,66504.0,0.002913]
[1722449957640,0.1907842,66505.0,66504.0,0.002913]
[1722449957943,0.0404202,66505.0,66504.0,0.002913]
[1722449958277,0.1907842,66505.0,66504.0,0.002913]
[1722449958465,0.4915132,66505.0,66504.0,0.002913]
[1722449958718,0.0404202,66505.0,66504.0,0.002913]
[1722449958925,0.1907842,66505.0,66504.0,0.002913]
[1722449959307,0.7922422,66505.0,66504.0,0.002913]
[1722449959920,0.851152,66505.0,66504.0,0.002913]
[1722449960121,0.550423,66505.0,66504.0,0.002913]
[1722449960702,0.851152,66505.0,66504.0,0.002913]
[1722449960908,0.550423,66505.0,66504.0,0.002913]
[1722449962118,0.851152,66505.0,66504.0,0.002913]
[1722449962340,0.550423,66505.0,66504.0,0.002913]
[1722449962963,0.467923,66505.0,66504.0,0.002913]
[1722449963253,0.4915135,66505.0,66504.0,0.002913]
[1722449963670,0.7922425,66505.0,66504.0,0.002913]
[1722449964084,0.4915135,66505.0,66504.0,0.002913]
[1722449965655,0.4845135,66505.0,66504.0,0.001913]
[1722449965861,0.460923,66505.0,66504.0,0.001913]
[1722449966070,0.761652,66505.0,66504.0,0.001913]
[1722449966270,0.160194,66505.0,66504.0,0.001913]
[1722449966469,0.460923,66505.0,66504.0,0.001913]
[1722449966667,0.761652,66505.0,66504.0,0.001913]
[1722449967142,0.460923,66505.0,66504.0,0.001913]
[1722449967370,0.473923,66505.0,66504.0,0.001913]
[1722449967584,0.173194,66505.0,66504.0,0.001913]
[1722449967786,0.460923,66505.0,66504.0,0.001913]
[1722449968194,0.166194,66505.0,66504.0,0.001913]
[1722449968581,0.466923,66505.0,66504.0,0.001913]
[1722449968957,0.49051287,66505.0,66504.0,0.001913]
[1722449969159,0.18978387,66505.0,66504.0,0.001913]
[1722449969343,0.47552186,66505.0,66504.0,0.001913]
[1722449969694,0.45193199,66505.0,66504.0,0.001913]
[1722449969861,0.75266099,66505.0,66504.0,0.001913]
[1722449970681,1.30902679,66505.0,66504.0,0.001913]
[1722449970894,1.40902679,66505.0,66504.0,0.001913]
[1722449971475,1.40902679,66505.0,66504.0,0.000913]
[1722449971683,1.40302679,66505.0,66504.0,0.000913]
[1722449971927,1.56454103,66505.0,66504.0,0.000913]
[1722449972160,1.43002679,66505.0,66504.0,0.000913]
[1722449972360,1.5733743,66505.0,66504.0,0.000913]
[1722449972709,2.02365502,66505.0,66504.0,0.000913]
[1722449972922,1.91273377,66505.0,66504.0,0.000913]
[1722449973129,1.88914078,66505.0,66504.0,0.000913]
[1722449974330,1.89914078,66505.0,66504.0,0.000913]
[1722449974555,2.19986978,66505.0,66504.0,0.000913]
[1722449974785,2.22286978,66505.0,66504.0,0.000913]
[1722449976215,2.21286978,66505.0,66504.0,0.000913]
[1722449976420,2.2364655,66505.0,66504.0,0.000913]
[1722449977661,2.09953298,66505.0,66504.0,0.000913]
[1722449977879,1.79880398,66505.0,66504.0,0.000913]
[1722449978081,2.09953298,66505.0,66504.0,0.000913]
[1722449979352,1.79880398,66505.0,66504.0,0.000913]
[1722449979584,1.92704671,66505.0,66504.0,0.000913]
[1722449979788,1.77580398,66505.0,66504.0,0.000913]
[1722449980217,2.22684428,66505.0,66504.0,0.000913]
[1722449980448,1.94911528,66505.0,66504.0,0.000913]
[1722449980670,1.79963398,66505.0,66504.0,0.000913]
[1722449980889,1.77663398,66505.0,66504.0,0.000913]
[1722449981335,1.22635326,66505.0,66504.0,0.000913]
[1722449981572,1.21849845,66505.0,66504.0,0.000913]
[1722449981771,0.47376199,66505.0,66504.0,0.000913]
[1722449983179,0.57376199,66505.0,66504.0,0.000913]
[1722449983373,0.12783,66505.0,66504.0,0.000913]
[1722449983585,0.12783,66505.0,66504.0,0.890745]
[1722449983586,0.02783,66505.0,66504.0,0.890745]
[1722449983774,0.02783,66505.0,66504.0,0.590012]
[1722449983976,0.02783,66505.0,66504.0,0.890745]
[1722449984183,0.01483,66505.0,66504.0,0.289279]
[1722449984384,0.01483,66505.0,66504.0,0.138913]
[1722449984763,0.02783,66505.0,66504.0,0.289279]
[1722449985581,0.02783,66505.0,66504.0,0.138913]
[1722449985785,0.478923,66505.0,66504.0,0.138913]
[1722449986020,0.752652,66505.0,66504.0,0.138913]
[1722449986218,1.055381,66505.0,66504.0,0.009913]
[1722449986429,1.84859842,66505.0,66504.0,0.001913]
[1722449986636,1.87159842,66505.0,66504.0,0.001913]
[1722449986837,1.87059842,66505.0,66504.0,0.001913]
[1722449987008,1.87059842,66505.0,66504.0,0.002913]
[1722449987238,1.74226172,66505.0,66504.0,0.002913]
[1722449987472,1.74426172,66505.0,66504.0,0.000913]
[1722449987677,1.75139935,66505.0,66504.0,0.000913]
[1722449987887,2.30042835,66505.0,66504.0,0.000913]
[1722449988086,2.44990965,66505.0,66504.0,0.000913]
[1722449988464,2.46390965,66505.0,66504.0,0.000913]
[1722449988713,2.46390965,66505.0,66500.0,1e-06]
[1722449988714,1.684107,66501.0,66500.0,1e-06]
[1722449988911,2.08012284,66501.0,66500.0,1e-06]
[1722449989227,1.532204,66494.0,66493.0,0.009306]
[1722449989391,2.09481984,66494.0,66493.0,0.009306]
[1722449989597,2.69637784,66494.0,66493.0,0.009306]
[1722449990684,2.71037784,66494.0,66493.0,0.009306]
[1722449990835,2.87385914,66494.0,66493.0,0.010306]
[1722449991202,2.85985914,66494.0,66493.0,0.010306]
[1722449991408,2.85985914,66494.0,66480.0,0.009306]
[1722449991409,1.965439,66481.0,66480.0,1e-06]
[1722449991609,2.32197791,66481.0,66480.0,1e-06]
[1722449991811,2.31405372,66481.0,66480.0,1e-06]
[1722449992999,2.31405372,66481.0,66471.0,0.0005]
[1722449993000,2.027278,66474.0,66471.0,0.0005]
[1722449993214,2.24159484,66474.0,66471.0,0.0005]
[1722449993424,1.96596172,66474.0,66471.0,0.0005]
[1722449993671,2.28983072,66474.0,66471.0,0.0005]
[1722449994508,0.009999,66472.0,66471.0,1e-06]
[1722449994720,1.91214384,66472.0,66471.0,1e-06]
[1722449994975,1.93214384,66472.0,66471.0,1e-06]
[1722449995185,2.03214384,66472.0,66471.0,1e-06]
[1722449995800,2.04614384,66472.0,66471.0,1e-06]
[1722449996009,2.19562514,66472.0,66471.0,1e-06]
[1722449996430,2.20862514,66472.0,66471.0,1e-06]
[1722449996645,2.19462514,66472.0,66471.0,1e-06]
[1722449996843,2.18162514,66472.0,66471.0,1e-06]
[1722449997048,2.17562514,66472.0,66471.0,1e-06]
[1722449997256,2.21322928,66472.0,66471.0,1e-06]
[1722449997460,1.97898486,66472.0,66471.0,1e-06]
[1722449997863,1.96498486,66472.0,66471.0,1e-06]
[1722449998267,1.95098486,66472.0,66471.0,1e-06]
[1722449998471,1.96498486,66472.0,66471.0,1e-06]
[1722449998672,2.11446616,66472.0,66471.0,1e-06]
[1722449998848,2.10046616,66472.0,66471.0,1e-06]
[1722449999020,2.11446616,66472.0,66471.0,1e-06]
[1722449999199,2.12846616,66472.0,66471.0,1e-06]
[1722449999831,2.10046616,66472.0,66471.0,1e-06]
[1722450000235,2.12846616,66472.0,66471.0,1e-06]
[1722450000436,2.13486102,66472.0,66471.0,1e-06]
[1722450000641,2.10086102,66472.0,66471.0,1e-06]
[1722450000962,2.12416702,66472.0,66471.0,1e-06]
[1722450001223,1.66380872,66472.0,66471.0,1e-06]
[1722450001420,1.64080872,66472.0,66471.0,1e-06]
[1722450001571,1.62680872,66472.0,66471.0,1e-06]
[1722450001993,1.33993072,66472.0,66471.0,1e-06]
[1722450002201,1.32593072,66472.0,66471.0,1e-06]
[1722450002431,1.75940179,66472.0,66471.0,1e-06]
[1722450002638,1.77340179,66472.0,66471.0,1e-06]
[1722450002837,0.164439,66472.0,66471.0,1e-06]
[1722450003054,0.028,66472.0,66471.0,0.0015552]
[1722450003440,0.178439,66472.0,66471.0,0.0015552]
[1722450003786,0.03760186,66472.0,66471.0,0.0015552]
[1722450003902,0.028,66472.0,66471.0,0.4528792]
[1722450004104,0.028,66472.0,66471.0,0.530825]
[1722450004309,0.014,66472.0,66471.0,1.04235972]
[1722450004507,0.060287,66491.0,66471.0,1.04235972]
[1722450004508,0.150408,66486.0,66471.0,0.59103572]
[1722450004793,0.060282,66495.0,66479.0,0.0795]
[1722450005020,0.451255,66481.0,66480.0,0.0015542]
[1722450005406,0.752092,66481.0,66480.0,0.0015542]
[1722450005621,0.45129,66476.0,66475.0,0.0015542]
[1722450005810,0.75215,66476.0,66475.0,0.0015542]
[1722450006132,0.45129,66476.0,66475.0,0.0015542]
[1722450006326,0.300851,66479.0,66475.0,0.0015542]
[1722450006533,0.150418,66482.0,66477.0,0.150427]
[1722450006730,0.1,66493.0,66475.0,0.1519852]
[1722450006968,0.150419,66481.0,66475.0,0.0015542]
[1722450007094,0.300803,66489.0,66480.0,0.15042]
[1722450007095,0.1,66489.0,66480.0,0.15042]
[1722450007296,0.02359924,66489.0,66479.0,0.0812]
[1722450007536,0.150413,66484.0,66481.0,0.0634]
[1722450007770,0.160282,66496.0,66482.0,0.0015542]
[1722450007936,0.014,66493.0,66483.0,0.0833]
[1722450008141,0.014,66493.0,66487.0,0.300809]
[1722450008322,0.014,66493.0,66492.0,0.451182]
[1722450008524,0.014,66493.0,66492.0,0.88877]
[1722450008762,0.014,66493.0,66492.0,0.73753372]
[1722450009185,0.014,66493.0,66492.0,1.4741016]
[1722450009806,0.014,66493.0,66492.0,1.34910972]
[1722450010031,0.44858472,66514.0,66504.0,0.827732]
[1722450010238,0.44858472,66514.0,66504.0,1.03978372]
[1722450010654,0.150344,66514.0,66504.0,1.03978372]
[1722450011058,0.300679,66516.0,66504.0,1.03978372]
[1722450011059,0.300693,66513.0,66504.0,0.73905072]
[1722450011262,0.451923,66505.0,66504.0,0.1384]
[1722450011469,0.752652,66505.0,66504.0,0.1384]
[1722450011864,0.6654882,66505.0,66504.0,0.001]
[1722450012071,1.37819792,66505.0,66504.0,0.001]
[1722450012954,1.64739792,66505.0,66504.0,0.001]
[1722450013161,1.94812692,66505.0,66504.0,0.001]
[1722450013576,1.95812692,66505.0,66504.0,0.001]
[1722450013864,0.752037,66486.0,66485.0,0.0015542]
[1722450014516,1.052852,66486.0,66485.0,0.0015542]
[1722450014757,1.052852,66486.0,66484.0,0.0756]
[1722450014758,0.752047,66485.0,66484.0,0.0756]
[1722450015902,0.006,66486.0,66477.0,0.0643]
[1722450016052,0.150425,66478.0,66477.0,0.0643]
[1722450016257,0.451276,66478.0,66477.0,0.0643]
[1722450016864,0.150425,66478.0,66477.0,0.0643]
[1722450017066,0.300834,66482.0,66477.0,0.0643]
[1722450017316,0.305819,66485.0,66477.0,0.0643]
[1722450017317,0.451276,66478.0,66477.0,0.0643]
[1722450017535,0.150437,66473.0,66472.0,0.0833]
[1722450017734,0.75200054,66473.0,66472.0,0.0833]
[1722450017963,0.150439,66472.0,66471.0,0.000914]
[1722450018161,0.752195,66472.0,66471.0,0.000914]
[1722450018764,0.451317,66472.0,66471.0,0.000914]
[1722450019091,0.001,66473.0,66472.0,0.451317]
[1722450019295,0.001,66473.0,66472.0,0.150439]
[1722450019523,0.151439,66472.0,66471.0,0.061514]
[1722450019738,0.001,66472.0,66471.0,0.061514]
[1722450019942,0.001,66473.0,66472.0,0.451317]
[1722450020130,0.004,66472.0,66471.0,0.594538]
[1722450020539,0.017,66472.0,66471.0,0.895421]
[1722450020751,0.017,66472.0,66471.0,0.544538]
[1722450020968,0.004,66472.0,66471.0,0.845421]
[1722450021163,0.004,66472.0,66471.0,0.093214]
[1722450021377,0.004,66472.0,66471.0,0.243655]
[1722450021587,0.006,66472.0,66471.0,0.093214]
[1722450021797,0.156439,66472.0,66471.0,0.0817]
[1722450021992,0.152439,66472.0,66471.0,0.0817]
[1722450022234,0.153439,66472.0,66471.0,0.0817]
[1722450022664,0.003,66472.0,66471.0,0.0817]
[1722450022884,0.17704115,66472.0,66471.0,0.0817]
[1722450023037,0.153439,66472.0,66471.0,0.0817]
[1722450023855,0.755195,66472.0,66471.0,0.0817]
[1722450024147,0.003,66472.0,66471.0,0.232141]
[1722450024351,0.003,66472.0,66471.0,1.1377987]
[1722450024729,0.003,66472.0,66471.0,0.8369157]
[1722450025249,0.003,66472.0,66471.0,0.5360327]
[1722450025633,0.003,66472.0,66471.0,0.232141]
[1722450025851,0.02660113,66472.0,66471.0,0.0817]
[1722450026123,0.02660113,66472.0,66471.0,0.232141]
[1722450026261,0.02660113,66472.0,66471.0,0.533024]
[1722450026434,0.003,66472.0,66471.0,0.533024]
[1722450027467,0.003,66472.0,66470.0,0.0015542]
[1722450027678,0.003,66472.0,66468.0,0.009306]
[1722450027679,0.153441,66472.0,66469.0,0.0015542]
[1722450027923,0.153439,66472.0,66469.0,0.0015542]
[1722450028316,0.003,66472.0,66470.0,0.300887]
[1722450028521,0.002,66472.0,66471.0,0.1519952]
[1722450028749,0.002,66472.0,66471.0,0.150441]
[1722450028968,0.002,66472.0,66471.0,0.451324]
[1722450029147,0.002,66472.0,66471.0,0.752207]
[1722450029348,0.003,66472.0,66471.0,1.05309]
[1722450029522,0.1,66485.0,66471.0,0.300883]
[1722450029523,0.150412,66484.0,66471.0,0.300883]
[1722450029722,0.1,66485.0,66480.0,0.15042]
[1722450029925,0.02360036,66481.0,66477.0,0.300851]
[1722450030128,0.02360036,66481.0,66472.0,0.0015542]
[1722450030129,0.02360036,66481.0,66480.0,0.595363]
[1722450030326,0.300747,66501.0,66480.0,0.29365172]
[1722450030533,0.00083,66505.0,66481.0,0.27758782]
[1722450030534,0.44858472,66497.0,66481.0,0.27758782]
[1722450030789,0.00083,66505.0,66482.0,0.2068284]
[1722450030924,0.00083,66505.0,66483.0,0.27758782]
[1722450031277,0.00083,66505.0,66484.0,0.1250284]
[1722450031278,0.150376,66500.0,66484.0,0.1250284]
[1722450031506,0.15037,66503.0,66498.0,0.150379]
[1722450031725,0.153375,66501.0,66493.0,0.300782]
[1722450031937,0.003,66501.0,66496.0,0.150384]
[1722450032142,0.003,66501.0,66500.0,0.150375]
[1722450032359,0.003,66501.0,66498.0,0.0601]
[1722450032574,0.003,66501.0,66500.0,0.01122261]
[1722450032835,0.150372,66502.0,66499.0,0.01122139]
[1722450033047,0.17596529,66501.0,66500.0,0.01121761]
[1722450033254,0.02359229,66501.0,66494.0,0.300775]
[1722450033453,0.02359229,66501.0,66491.0,0.21225172]
[1722450033454,0.02359229,66501.0,66499.0,0.150377]
[1722450033661,0.002,66501.0,66500.0,0.01121761]
[1722450033862,0.002,66501.0,66495.0,0.30077]
[1722450034068,0.002,66501.0,66499.0,0.150376]
[1722450034482,0.002,66501.0,66500.0,0.01121761]
[1722450034697,0.150367,66504.0,66500.0,0.01121761]
[1722450034906,0.003,66501.0,66500.0,0.01121761]
[1722450035326,0.45412,66501.0,66500.0,0.01121761]
[1722450035534,0.005,66501.0,66485.0,0.300819]
[1722450035758,0.005,66501.0,66484.0,0.300821]
[1722450035962,0.150395,66492.0,66489.0,0.01125786]
[1722450036170,0.150394,66492.0,66489.0,0.01125786]
[1722450036374,0.150397,66491.0,66489.0,0.01125786]
[1722450036601,0.003,66501.0,66486.0,0.0791]
[1722450036602,0.300762,66498.0,66486.0,0.0791]
[1722450036819,0.150385,66496.0,66491.0,0.150395]
[1722450037233,0.150385,66496.0,66492.0,0.01124651]
[1722450037445,0.009,66501.0,66492.0,0.01124651]
[1722450037648,0.009,66501.0,66493.0,0.00300766]
[1722450037859,0.00083,66505.0,66504.0,0.150366]
[1722450038065,0.00083,66505.0,66504.0,0.46230016]
[1722450038276,0.00083,66505.0,66504.0,0.84073316]
[1722450038475,0.00083,66505.0,66504.0,0.54000016]
[1722450039407,0.00083,66505.0,66504.0,0.08890116]
[1722450039584,0.00083,66505.0,66504.0,0.23926716]
[1722450040259,0.02542047,66505.0,66504.0,0.54000016]
[1722450040456,0.02542047,66505.0,66504.0,0.84073316]
[1722450040676,0.02542047,66505.0,66504.0,0.54000016]